fUSD/lending_fUSD_20260122
["ID","MTS","AMOUNT","RATE_DAILY","PERIOD"]
[403018840,1769069566811,600.0,0.00013,2]
[403018855,1769069653188,1029.24276302,7.945e-05,2]
[403018856,1769069653211,4150.29995498,7.945e-05,2]
[403018894,1769069844942,500.0,0.000176,30]
[403018895,1769069845370,500.0,0.00013,2]
[403018896,1769069849901,166.66,0.00016036,2]
[403018946,1769070273157,537.0,0.00016,2]
[403018954,1769070411989,1366.74630957,0.000162,5]
[403018955,1769070419535,1255.08479104,0.000153,2]
[403018956,1769070512568,3390.95525398,0.00015,2]
[403018957,1769070512589,6054.0316206,0.00015,2]
[403018962,1769070625564,-160.77954073,0.00016131,2]
[403018963,1769070625590,-47.59576147,0.00016167,2]
[403018964,1769070630643,-182.51511997,0.00016167,2]
[403018973,1769070631901,-69.88911856,0.00016167,2]
[403018974,1769070631912,-300.0,0.00016202,2]
[403018975,1769070631922,-233.95323741,0.00016254,2]
[403018976,1769070631935,-66.04676259,0.00016254,2]
[403018977,1769070631946,-376.14435786,0.00016254,2]
[403018978,1769070631957,-155.03186655,0.00016274,2]
[403018979,1769070632030,-300.0,0.00016303,2]
[403018980,1769070632041,-300.0,0.00016303,2]
[403018981,1769070632051,-161.67130333,0.00016303,2]
[403018982,1769070632061,-1000.0,0.00016361,2]
[403018983,1769070632071,-166.66,0.00016374,2]
[403018984,1769070632082,-1500.0,0.00016442,2]
[403018985,1769070632094,-1129.30573974,0.00016444,2]
[403018986,1769070632107,-93.93879226,0.00016444,2]
[403018987,1769070632117,-500.0,0.00016655,2]
[403018988,1769070632127,-200.0,0.00016666,2]
[403018989,1769070632138,-704.65,0.00016684,2]
[403018990,1769070632148,-1200.0,0.00016709,2]
[403018991,1769070632159,-858.58,0.0001671,2]
[403018992,1769070632170,-166.66,0.00016712,2]
[403018993,1769070632180,-151.0,0.00016889,2]
[403018995,1769070632192,-151.0,0.00016896,2]
[403018997,1769070632203,-151.0,0.00016898,2]
[403018999,1769070632214,-250.0,0.00017,2]
[403019001,1769070632224,-127.9096743,0.00017049,2]
[403019002,1769070632353,-38.7503257,0.00017049,2]
[403019003,1769070632364,-300.0,0.00017084,2]
[403019004,1769070632375,-1264.14,0.00017085,2]
[403019005,1769070632385,-578.20924308,0.0001709,2]
[403019006,1769070632395,-174.61919142,0.0001709,2]
[403019007,1769070632406,-322.6107,0.0001709,2]
[403019008,1769070632417,-2567.0,0.0001709,2]
[403019009,1769070632428,-2438.31520208,0.0001709,2]
[403019010,1769070632438,-283.63416765,0.00017131,2]
[403019011,1769070632449,-168.0,0.00017381,2]
[403019012,1769070632459,-166.66,0.00017387,2]
[403019013,1769070632469,-300.0,0.00017387,2]
[403019014,1769070632479,-500.0,0.000176,6]
[403019015,1769070632489,-168.0,0.00017618,2]
[403019016,1769070632500,-936.77073379,0.0001764,2]
[403019017,1769070632511,-300.0,0.00017673,2]
[403019018,1769070632521,-202.57409006,0.00017679,2]
[403019019,1769070632531,-500.0,0.00017679,2]
[403019020,1769070632541,-500.0,0.00017679,2]
[403019021,1769070632552,-250.0,0.00017679,2]
[403019022,1769070632562,-500.0,0.00017679,2]
[403019023,1769070632572,-250.0,0.00017679,2]
[403019024,1769070632583,-500.0,0.00017679,2]
[403019025,1769070632593,-500.0,0.00017679,2]
[403019026,1769070632603,-263.33008425,0.00017679,2]
[403019027,1769070632613,-389.2333927,0.00017679,2]
[403019028,1769070632626,-110.7666073,0.00017679,2]
[403019029,1769070632636,-500.0,0.00017679,2]
[403019030,1769070632646,-500.0,0.00017679,2]
[403019031,1769070632656,-500.0,0.00017679,2]
[403019032,1769070632666,-116.93279753,0.00017679,2]
[403019033,1769070632680,-188.65092647,0.00017679,2]
[403019034,1769070632690,-151.0,0.00017679,2]
[403019035,1769070632700,-151.0,0.00017679,2]
[403019036,1769070632710,-151.0,0.00017679,2]
[403019037,1769070632720,-151.0,0.00017679,2]
[403019038,1769070632730,-500.0,0.00017679,2]
[403019039,1769070632741,-151.0,0.00017679,2]
[403019040,1769070632751,-151.0,0.00017679,2]
[403019041,1769070632762,-500.0,0.00017679,2]
[403019042,1769070632771,-151.0,0.00017679,2]
[403019043,1769070632782,-151.0,0.00017679,2]
[403019044,1769070632792,-151.0,0.00017679,2]
[403019045,1769070632802,-151.0,0.00017679,2]
[403019046,1769070632813,-151.0,0.00017679,2]
[403019047,1769070632824,-151.0,0.00017679,2]
[403019048,1769070632833,-151.0,0.00017679,2]
[403019049,1769070632843,-151.0,0.00017679,2]
[403019050,1769070632854,-151.0,0.00017679,2]
[403019051,1769070632865,-151.0,0.00017679,2]
[403019052,1769070632874,-151.0,0.00017679,2]
[403019053,1769070632884,-151.0,0.00017679,2]
[403019054,1769070632894,-151.0,0.00017679,2]
[403019055,1769070632904,-151.0,0.00017679,2]
[403019056,1769070632914,-119.41473667,0.00017679,2]
[403019057,1769070632966,-31.58526333,0.00017679,2]
[403019058,1769070632976,-151.0,0.00017679,2]
[403019059,1769070632986,-151.0,0.00017679,2]
[403019060,1769070632995,-151.0,0.00017679,2]
[403019061,1769070633005,-151.0,0.00017679,2]
[403019062,1769070633015,-151.0,0.00017679,2]
[403019063,1769070633026,-124.98401187,0.00017679,2]
[403019064,1769070633038,-26.01598813,0.00017679,2]
[403019065,1769070633048,-151.0,0.00017679,2]
[403019066,1769070633058,-151.0,0.00017679,2]
[403019067,1769070633068,-151.0,0.00017679,2]
[403019068,1769070633078,-250.0,0.00017679,2]
[403019069,1769070633088,-143.64932231,0.00017679,2]
[403019070,1769070633100,-7.35067769,0.00017679,2]
[403019071,1769070633110,-151.0,0.00017679,2]
[403019072,1769070633121,-151.0,0.00017679,2]
[403019073,1769070633131,-151.0,0.00017679,2]
[403019074,1769070633142,-151.0,0.00017679,2]
[403019075,1769070633152,-223.83953374,0.00017679,2]
[403019076,1769070633166,-26.16046626,0.00017679,2]
[403019077,1769070633177,-151.0,0.00017679,2]
[403019078,1769070633189,-250.0,0.00017679,2]
[403019079,1769070633203,-139.89428618,0.00017679,2]
[403019080,1769070633216,-110.10571382,0.00017679,2]
[403019081,1769070633227,-250.0,0.00017679,2]
[403019082,1769070633238,-250.0,0.00017679,2]
[403019083,1769070633248,-151.0,0.00017679,2]
[403019084,1769070633258,-250.0,0.00017679,2]
[403019085,1769070633268,-151.0,0.00017679,2]
[403019086,1769070633279,-250.0,0.00017679,2]
[403019087,1769070633288,-151.0,0.00017679,2]
[403019088,1769070633298,-250.0,0.00017679,2]
[403019089,1769070633308,-151.0,0.00017679,2]
[403019090,1769070633318,-188.55553634,0.00017679,2]
[403019091,1769070633330,-61.44446366,0.00017679,2]
[403019092,1769070633339,-151.0,0.00017679,2]
[403019093,1769070633349,-250.0,0.00017679,2]
[403019094,1769070633360,-151.0,0.00017679,2]
[403019095,1769070633370,-151.0,0.00017679,2]
[403019096,1769070633379,-250.0,0.00017679,2]
[403019097,1769070633390,-160.93130682,0.00017679,2]
[403019098,1769070633400,-250.0,0.00017679,2]
[403019099,1769070633410,-250.0,0.00017679,2]
[403019100,1769070633421,-250.0,0.00017679,2]
[403019101,1769070633430,-136.75514036,0.00017679,2]
[403019102,1769070633451,-113.24485964,0.00017679,2]
[403019103,1769070633462,-250.0,0.00017679,2]
[403019104,1769070633472,-145.76265551,0.00017679,2]
[403019105,1769070633485,-104.23734449,0.00017679,2]
[403019106,1769070633495,-250.0,0.00017679,2]
[403019107,1769070633505,-250.0,0.00017679,2]
[403019108,1769070633515,-500.0,0.00017679,2]
[403019109,1769070633526,-250.0,0.00017679,2]
[403019110,1769070633535,-500.0,0.00017679,2]
[403019111,1769070633545,-301.96560886,0.00017679,2]
[403019112,1769070633555,-500.0,0.00017679,2]
[403019113,1769070633566,-500.0,0.00017679,2]
[403019114,1769070633576,-500.0,0.00017679,2]
[403019115,1769070633586,-500.0,0.00017679,2]
[403019116,1769070633596,-500.0,0.00017679,2]
[403019117,1769070633606,-500.0,0.00017679,2]
[403019118,1769070633617,-500.0,0.00017679,2]
[403019119,1769070633627,-500.0,0.00017679,2]
[403019120,1769070633637,-500.0,0.00017679,2]
[403019121,1769070633647,-500.0,0.00017679,2]
[403019122,1769070633657,-104.37442524,0.00017679,2]
[403019123,1769070633671,-290.05642929,0.00017679,2]
[403019124,1769070633723,-105.56914547,0.00017679,2]
[403019125,1769070633733,-500.0,0.00017679,2]
[403019126,1769070633743,-500.0,0.00017679,2]
[403019127,1769070633754,-500.0,0.00017679,2]
[403019128,1769070633764,-500.0,0.00017679,2]
[403019129,1769070633774,-500.0,0.00017679,2]
[403019130,1769070633784,-500.0,0.00017679,2]
[403019131,1769070633794,-620.0,0.00017679,2]
[403019132,1769070633805,-482.45624477,0.00017679,2]
[403019133,1769070633825,-17.54375523,0.00017679,2]
[403019134,1769070633835,-493.23676001,0.00017679,2]
[403019135,1769070633847,-7.44873289,0.00017679,2]
[403019136,1769070633856,-198.56508977,0.00017689,2]
[403019137,1769070633867,-500.0,0.00017689,2]
[403019138,1769070633878,-150.0,0.00017689,2]
[403019139,1769070633889,-70.04144809,0.0001769,2]
[403019140,1769070633922,-115.21200851,0.0001769,2]
[403019141,1769070633932,-242.66630741,0.00017699,2]
[403019142,1769070633944,-3045.52,0.00017699,2]
[403019143,1769070633956,-714.6119001,0.00017699,2]
[403019144,1769070633967,-1100.0,0.000177,6]
[403019145,1769070633977,-166.66,0.00017725,2]
[403019146,1769070633987,-5091.5104091,0.00017728,2]
[403019147,1769070634047,-2701.61761818,0.00017728,2]
[403019149,1769070637576,-500.0,0.00016951,2]
[403019151,1769070637587,-2009.67197272,0.00017728,2]
[403019153,1769070637596,-1.18461168,0.00017728,2]
[403019155,1769070637704,-846.33812054,0.00017728,2]
[403019156,1769070637715,-334.66064444,0.00017728,2]
[403019157,1769070637727,-920.36913429,0.00017728,2]
[403019158,1769070637740,-408.87621813,0.00017728,2]
[403019159,1769070637752,-1221.12102354,0.00017728,2]
[403019161,1769070639317,-2793.14024738,0.00017728,2]
[403019162,1769070639327,-1028.04417378,0.00017744,2]
[403019163,1769070639448,-450.58499,0.00017744,2]
[403019164,1769070639564,-341.41218939,0.00017744,2]
[403019165,1769070639574,-385.25973331,0.00017744,2]
[403019166,1769070639583,-195.0,0.00017744,2]
[403019167,1769070639593,-613.74951283,0.00017744,2]
[403019169,1769070639602,-133.42959017,0.00017744,2]
[403019170,1769070639613,-166.57040983,0.00017744,2]
[403019171,1769070639623,-194.24196309,0.00017744,2]
[403019172,1769070639632,-300.0,0.00017744,2]
[403019173,1769070639642,-600.0,0.00017744,2]
[403019174,1769070639652,-500.0,0.00017744,2]
[403019175,1769070639661,-240.81706826,0.00017744,2]
[403019176,1769070639670,-150.0,0.00017753,2]
[403019177,1769070639679,-151.95758753,0.00017756,2]
[403019178,1769070639689,-260.62,0.00017788,2]
[403019179,1769070639698,-1000.0,0.00017788,2]
[403019180,1769070639707,-158.46986394,0.00017788,2]
[403019181,1769070639716,-195.34405888,0.00017788,2]
[403019182,1769070639726,-147.55917001,0.00017788,2]
[403019209,1769070640225,-352.44082999,0.00017788,2]
[403019211,1769070640235,-181.39828244,0.00017788,2]
[403019213,1769070640245,-530.71879269,0.00017788,2]
[403019215,1769070640255,-370.9508599,0.00017788,2]
[403019217,1769070640265,-166.52837538,0.00017788,2]
[403019219,1769070640276,-500.0,0.00017788,2]
[403019221,1769070640286,-315.2106577,0.00017788,2]
[403019224,1769070640301,-184.7893423,0.00017788,2]
[403019226,1769070640311,-524.4862064,0.00017788,2]
[403019228,1769070640321,-233.3919,0.00017789,2]
[403019230,1769070640330,-10277.57017874,0.00017789,2]
[403019233,1769070640345,-35841.42234615,0.00017789,2]
[403019236,1769070640373,-8572.04603097,0.00017789,2]
[403019267,1769070642788,-0.82048137,0.00017789,2]
[403019268,1769070642824,-1308.51258046,0.00017789,2]
[403019269,1769070642852,-395.73990055,0.00017789,2]
[403019270,1769070642866,-674.655,0.00017789,2]
[403019271,1769070642882,-33542.28060534,0.00017789,2]
[403019279,1769070645722,-151.0,0.00017313,2]
[403019280,1769070645732,-804.62,0.00017789,2]
[403019281,1769070645750,-619.08822853,0.00017789,2]
[403019282,1769070645762,-14500.0,0.00017789,2]
[403019283,1769070645775,-1036.5976,0.00017789,2]
[403019284,1769070645785,-3613.0383036,0.00017789,2]
[403019474,1769071282822,47872.0,0.000165,3]
[403019614,1769071740505,545.31,0.00016052,2]
[403019781,1769071831682,-464.8,0.00016406,2]
[403019782,1769071831692,-195.0,0.00016464,2]
[403019783,1769071831702,-200.0,0.00016466,2]
[403019784,1769071831712,-250.0,0.00016523,2]
[403019785,1769071831722,-155.84,0.00016641,2]
[403019786,1769071831733,-300.0,0.00016676,2]
[403019787,1769071831742,-300.0,0.00016751,2]
[403019788,1769071831752,-1200.0,0.00016751,2]
[403019789,1769071831761,-8226.8528124,0.00016752,2]
[403019790,1769071831774,-17272.48964874,0.00016752,2]
[403019791,1769071831785,-355.00000001,0.00016752,2]
[403019795,1769071837649,-1771.48086826,0.00016752,2]
[403019796,1769071837660,-2308.0745787,0.00016752,2]
[403019797,1769071837672,-1875.93,0.00016752,2]
[403019798,1769071837754,-1567.06342584,0.00016752,2]
[403019799,1769071837766,-948.38,0.00016752,2]
[403019945,1769071839583,-13007.14536093,0.00016752,2]
[403019953,1769071839639,-1748.14107165,0.00016752,2]
[403019955,1769071839654,-283.85068907,0.00016752,2]
[403019958,1769071839665,-9966.51219918,0.00016752,2]
[403020224,1769071842709,-4069.35546928,0.00016752,2]
[403020226,1769071842720,-341.04,0.00016752,2]
[403020227,1769071842974,-500.0,0.00016752,2]
[403020228,1769071842986,-374.09274648,0.00016752,2]
[403020230,1769071845731,-816.921,0.00016752,2]
[403020231,1769071845743,-1963.25480074,0.00016752,2]
[403020232,1769071845755,-15480.0,0.00016752,2]
[403020233,1769071845784,-1202.57678075,0.00016752,2]
[403020234,1769071845796,-581.45672485,0.00016752,2]
[403020235,1769071845807,-1942.69994,0.00016752,2]
[403020236,1769071845823,-9102.1,0.00016752,2]
[403020237,1769071845835,-3108.4,0.00016752,2]
[403020238,1769071845851,-10644.69115927,0.00016752,2]
[403020239,1769071845867,-310.546,0.00016752,2]
[403020240,1769071845879,-1826.735,0.00016752,2]
[403020375,1769072164476,-221.89649215,0.00016069,2]
[403020376,1769072167105,-283.58231807,0.00016069,2]
[403020377,1769072169798,-187.07118978,0.00016069,2]
[403020378,1769072169821,-41.20129775,0.00016069,2]
[403020379,1769072171283,-210.64922317,0.00016069,2]
[403020380,1769072172827,-200.0,0.00016069,2]
[403020383,1769072174409,-175.68786292,0.00016069,2]
[403020384,1769072176347,-297.36460161,0.00016069,2]
[403020385,1769072177957,-277.69502588,0.00016069,2]
[403020395,1769072181523,-170.81,0.00016069,2]
[403020396,1769072183112,-200.57604426,0.00016069,2]
[403020397,1769072184638,-161.40100726,0.00016069,2]
[403020398,1769072189345,-42.93493715,0.00016069,2]
[403020399,1769072189367,-162.30962503,0.00016112,2]
[403020400,1769072190885,-183.41015407,0.00016112,2]
[403020401,1769072193172,-251.01652615,0.00016112,2]
[403020433,1769072325616,3400.6583794,0.00015654,2]
[403020434,1769072325636,3231.8616206,0.00015654,2]
[403020436,1769072361451,505.67294194,0.00016,7]
[403020437,1769072375087,-95.81369475,0.00016112,2]
[403020438,1769072375110,-109.01851219,0.00016134,2]
[403020439,1769072381694,-329.60072702,0.00016134,2]
[403020440,1769072383804,-151.24116048,0.00016134,2]
[403020441,1769072385256,-159.57822226,0.00016134,2]
[403020442,1769072389501,-241.82660523,0.00016134,2]
[403020483,1769072510123,-39.34735453,0.00016134,2]
[403020484,1769072510145,-155.75628749,0.00016134,2]
[403020485,1769072512608,-129.24371251,0.00016134,2]
[403020486,1769072512632,-39.04628749,0.00016139,2]
[403020487,1769072515383,-115.98557906,0.00016139,2]
[403020488,1769072515406,-42.98442094,0.00016154,2]
[403020497,1769072569950,200.0,0.0001564,2]
[403020499,1769072592003,166.66,0.00015351,2]
[403020500,1769072592200,166.66,0.00015674,2]
[403020501,1769072592449,166.66,0.00015998,2]
[403020512,1769072617397,299.99,0.00016408,4]
[403020514,1769072645164,-300.0,0.00016154,2]
[403020517,1769072647713,-616.5,0.00016154,2]
[403020518,1769072647737,-583.5,0.00016154,2]
[403020519,1769072649301,-66.06557906,0.00016154,2]
[403020520,1769072649325,-88.96628749,0.00016196,2]
[403020521,1769072651593,-233.98301714,0.00016196,2]
[403020522,1769072653807,-195.0,0.00016196,2]
[403020525,1769072766064,491.75,0.00015609,2]
[403020532,1769072805128,2910.25,0.000129,2]
[403020537,1769073005735,365.91,0.00015555,2]
[403020539,1769073031665,-174.60069537,0.00016196,2]
[403020540,1769073031674,-250.0,0.00016208,2]
[403020541,1769073031684,-661.43,0.00016219,2]
[403020542,1769073031694,-200.0,0.00016225,2]
[403020543,1769073031703,-689.31596582,0.00016239,2]
[403020544,1769073031718,-3.23403418,0.00016239,2]
[403020545,1769073031727,-494.53223726,0.00016281,2]
[403020546,1769073031738,-198.01776274,0.00016281,2]
[403020547,1769073031748,-166.66,0.00016321,2]
[403020548,1769073031757,-692.55,0.00016323,2]
[403020549,1769073031766,-10.84949118,0.00016363,2]
[403020550,1769073031780,-1189.15050882,0.00016363,2]
[403020551,1769073031789,-550.0,0.00016364,2]
[403020552,1769073031802,-109.60705969,0.00016364,2]
[403020553,1769073031814,-190.39294031,0.00016364,2]
[403020554,1769073031824,-300.0,0.00016364,2]
[403020555,1769073031834,-462.9173276,0.00016365,2]
[403020556,1769073031845,-310.31,0.00016365,2]
[403020557,1769073031860,-5596.8126724,0.00016365,2]
[403020558,1769073031870,-1133.75706631,0.00016365,2]
[403020559,1769073031882,-7007.03581484,0.00016365,2]
[403020560,1769073031894,-2071.65711885,0.00016365,2]
[403020561,1769073031904,-5910.94120379,0.00016365,2]
[403020562,1769073031915,-684.90508682,0.00016365,2]
[403020563,1769073032013,-2643.57054066,0.00016365,2]
[403020564,1769073032025,-760.57316873,0.00016365,2]
[403020565,1769073032034,-185.91043157,0.00016365,2]
[403020566,1769073032078,-506.63956843,0.00016365,2]
[403020567,1769073032088,-372.43455402,0.00016383,2]
[403020568,1769073032097,-151.0,0.00016405,2]
[403020569,1769073032107,-692.55,0.00016408,2]
[403020570,1769073032115,-150.99,0.00016408,2]
[403020571,1769073032124,-5016.26712055,0.00016408,2]
[403020572,1769073032135,-835.33853644,0.00016408,2]
[403020573,1769073032179,-2952.94751725,0.00016408,2]
[403020574,1769073032195,-1195.43682576,0.00016408,2]
[403020576,1769073032204,-692.55,0.0001645,2]
[403020578,1769073032213,-151.0,0.00016481,2]
[403020580,1769073032222,-692.55,0.00016492,2]
[403020582,1769073032231,-763.0,0.00016504,2]
[403020584,1769073032240,-180.0,0.00016514,2]
[403020586,1769073032249,-355.01131241,0.0001653,2]
[403020588,1769073032259,-1061.0,0.00016531,2]
[403020590,1769073032268,-692.55,0.00016535,2]
[403020592,1769073032277,-500.0,0.00016575,2]
[403020594,1769073032286,-692.55,0.00016577,2]
[403020596,1769073032296,-151.0,0.00016582,2]
[403020598,1769073032305,-259.66560194,0.00016584,2]
[403020600,1769073032314,-500.0,0.00016584,2]
[403020602,1769073032324,-426.51886716,0.00016584,2]
[403020604,1769073032333,-500.0,0.00016584,2]
[403020606,1769073032347,-600.22890858,0.00016584,2]
[403020608,1769073032356,-175.0,0.00016584,2]
[403020610,1769073032365,-500.0,0.00016584,2]
[403020612,1769073032375,-500.0,0.00016584,2]
[403020614,1769073032384,-449.9303708,0.00016584,2]
[403020616,1769073032395,-50.0696292,0.00016584,2]
[403020618,1769073032404,-500.0,0.00016584,2]
[403020620,1769073032413,-500.0,0.00016584,2]
[403020623,1769073032422,-500.0,0.00016584,2]
[403020625,1769073032432,-216.32729875,0.00016584,2]
[403020627,1769073032443,-283.67270125,0.00016584,2]
[403020629,1769073032452,-351.07242761,0.00016584,2]
[403020631,1769073032461,-244.44622754,0.00016584,2]
[403020633,1769073032473,-255.55377246,0.00016584,2]
[403020635,1769073032483,-500.0,0.00016584,2]
[403020637,1769073032491,-500.0,0.00016584,2]
[403020639,1769073032500,-500.0,0.00016584,2]
[403020641,1769073032509,-500.0,0.00016584,2]
[403020643,1769073032518,-59.80469451,0.00016584,2]
[403020678,1769073037683,-440.19530549,0.00016584,2]
[403020679,1769073037693,-500.0,0.00016584,2]
[403020680,1769073037701,-58.74430451,0.00016584,2]
[403020681,1769073037791,-441.25569549,0.00016584,2]
[403020682,1769073037803,-250.61471308,0.00016584,2]
[403020683,1769073037815,-249.38528692,0.00016584,2]
[403020684,1769073037824,-500.0,0.00016584,2]
[403020685,1769073037834,-500.0,0.00016584,2]
[403020686,1769073037846,-500.0,0.00016584,2]
[403020687,1769073037856,-500.0,0.00016584,2]
[403020688,1769073037865,-500.0,0.00016584,2]
[403020689,1769073037875,-500.0,0.00016584,2]
[403020690,1769073037884,-500.0,0.00016584,2]
[403020691,1769073037895,-500.0,0.00016584,2]
[403020692,1769073037904,-500.0,0.00016584,2]
[403020693,1769073037914,-500.0,0.00016584,2]
[403020694,1769073037923,-500.0,0.00016584,2]
[403020695,1769073037934,-500.0,0.00016584,2]
[403020696,1769073037943,-300.0,0.00016584,2]
[403020697,1769073037954,-1126.65470244,0.00016585,2]
[403020698,1769073037966,-903.93718342,0.00016585,2]
[403020699,1769073037977,-16239.21024676,0.00016585,2]
[403020700,1769073038001,-419.12847376,0.00016585,2]
[403020701,1769073038012,-189877.30964205,0.00016585,2]
[403020702,1769073038023,-755.71897079,0.00016585,2]
[403020703,1769073038035,-1911.74091694,0.00016585,2]
[403020704,1769073038046,-518.98264,0.00016585,2]
[403020705,1769073038145,-446.49837639,0.00016585,2]
[403020706,1769073039827,-55238.72825719,0.00016585,2]
[403020707,1769073039838,-732.18335078,0.00016585,2]
[403020708,1769073039883,-348.7328232,0.00016585,2]
[403020709,1769073039894,-730.0,0.00016585,2]
[403020710,1769073039906,-495.68719811,0.00016585,2]
[403020711,1769073039917,-26944.62918039,0.00016585,2]
[403020712,1769073039929,-4237.64394581,0.00016585,2]
[403020715,1769073040310,-1.7e-07,0.00016585,2]
[403020716,1769073040333,-224083.6445732,0.00016585,2]
[403020717,1769073040372,-1847.29706136,0.00016585,2]
[403020718,1769073040392,-1222.79262279,0.00016585,2]
[403020720,1769073040803,-1427.900885,0.00016585,2]
[403020721,1769073040814,-801.54783843,0.00016585,2]
[403020722,1769073040825,-833.64213749,0.00016585,2]
[403020723,1769073040836,-936.43138001,0.00016585,2]
[403020724,1769073040847,-50401.79756745,0.00016585,2]
[403020725,1769073040859,-1059.44336652,0.00016585,2]
[403020737,1769073043089,-343.58113779,0.00016585,2]
[403020738,1769073043100,-789.61368631,0.00016585,2]
[403020739,1769073043142,-555.870015,0.00016585,2]
[403020746,1769073045871,-4311.39678493,0.00016585,2]
[403020747,1769073045983,-9598.25041028,0.00016585,2]
[403020750,1769073160022,150.0,0.00015529,2]
[403020755,1769073232328,846.21,0.00015529,2]
[403020757,1769073254155,1051.37,0.00015877,2]
[403020774,1769073433953,252.6683794,0.00015879,2]
[403020775,1769073433980,211.0216206,0.00015879,2]
[403020776,1769073435077,500.0,0.000176,30]
[403020777,1769073435197,500.0,0.000176,30]
[403020778,1769073435282,500.0,0.000176,30]
[403020780,1769073436095,500.0,0.00013,2]
[403020781,1769073436193,500.0,0.000176,30]
[403020782,1769073436242,500.0,0.000176,30]
[403020783,1769073436380,500.0,0.000176,30]
[403020784,1769073436720,500.0,0.00013,2]
[403020787,1769073437690,1000.0,0.00015878,2]
[403020788,1769073441764,500.0,0.000176,30]
[403020789,1769073442596,511.78793112,0.000176,30]
[403020790,1769073449151,500.0,0.000176,30]
[403020791,1769073449410,500.0,0.000176,30]
[403020796,1769073526306,150.0,0.00015877,2]
[403020800,1769073711864,200.0,0.00015744,2]
[403020807,1769073859494,-621.98784351,0.00016079,2]
[403020808,1769073861735,-231.39722472,0.00016079,2]
[403020809,1769073863268,-165.08698617,0.00016079,2]
[403020810,1769073864821,-192.40805446,0.00016079,2]
[403020811,1769073868787,-209.51412181,0.00016079,2]
[403020812,1769073873359,-167.17532628,0.00016079,2]
[403020813,1769073877495,-356.39813618,0.00016079,2]
[403020814,1769073883777,-152.55509174,0.00016079,2]
[403020815,1769073885795,-352.83762088,0.00016079,2]
[403020816,1769073887935,-199.59492798,0.00016079,2]
[403020817,1769073889770,-249.69930692,0.00016079,2]
[403020818,1769073896901,-191.36008041,0.00016079,2]
[403020819,1769073900747,-214.24848571,0.00016079,2]
[403020820,1769073902519,-259.43,0.00016078,2]
[403020830,1769073905870,-292.27244388,0.00016078,2]
[403020838,1769073910082,-159.0032352,0.00016078,2]
[403020839,1769073912154,-254.53843363,0.00016078,2]
[403020840,1769073913889,-189.22538728,0.00016078,2]
[403020842,1769073916675,-45.53050001,0.00016078,2]
[403020843,1769073916698,-144.38235203,0.00016079,2]
[403020844,1769073918334,-220.54251313,0.00016079,2]
[403020845,1769073918919,4752.2,0.00015773,2]
[403020846,1769073923473,-348.75883952,0.00016079,2]
[403020847,1769073925470,-267.10960323,0.00016079,2]
[403020848,1769073927302,-300.0,0.00016079,2]
[403020849,1769073928955,-237.64234053,0.00016079,2]
[403020850,1769073933235,-156.99260718,0.00016079,2]
[403020851,1769073936527,-326.22413417,0.00016079,2]
[403020852,1769073939826,-213.29864189,0.00016079,2]
[403020853,1769073942053,-188.37920448,0.00016079,2]
[403020854,1769073944868,-300.0,0.00016079,2]
[403020855,1769073947693,-241.89086637,0.00016079,2]
[403020856,1769073952042,-155.82606753,0.00016079,2]
[403020857,1769073957644,-320.73714796,0.00016079,2]
[403020858,1769073959460,-276.03722908,0.00016079,2]
[403020859,1769073961567,-236.36609907,0.00016079,2]
[403020865,1769073966390,-205.28648796,0.00016079,2]
[403020867,1769073969668,-333.27214683,0.00016079,2]
[403020868,1769073971723,-201.28433964,0.00016079,2]